{"text_format":"1","workbook":"xlsx","n_sheets":4,"sheets":["اعدادات","حضور وانصراف","data","Sheet1"],"not_rendered":{"charts":0,"images":1,"macros":1,"external_links":0,"defined_names":9,"comments":0,"pivot_tables":0},"unopened":[],"bounds":{"document_bytes":16777216,"sheet_cells":100000,"rows_first":2000,"rows_last":500,"rows_between":2000,"halvings":0,"cell_chars":16384,"cell_head_chars":4096},"cells_cut":0,"cells_raw":0,"read":"whole","date_system":"1900"}

{"sheet":"اعدادات","index":0,"n_rows":18,"n_cols":11,"rows_kept":18,"cut":false,"hidden":false,"merged":[[1,4,1,5]]}
[]
["م"," الاسم","الرصيد السنوي","رصيد اجازات العارضة","الأجازات السنوية",null,"السنة ","أنواع الاجازات","الشهور",null,"أنواع اجازات الإضافية"]
[1,"Ragab",21,0,{"$f":"DATE(G3,1,7)","v":"2024-01-07"},"عيد الميلاد",2024,"حضور","يناير",1,"حضور"]
[null,null,null,null,{"$f":"DATE(G3,1,25)","v":"2024-01-25"},"عيد الشرطه",null,"عارضة","فبراير",2,"نصف يوم "]
[null,null,null,null,{"$f":"DATE(G3,4,17)","v":"2024-04-17"},"شم النسيم",null,"اعتيادى","مارس",3,"غياب"]
[null,null,null,null,{"$f":"DATE(G3,4,21)","v":"2024-04-21"},"عيد الفطر المبارك",null,"مرضى","أبريل",4]
[null,null,null,null,{"$f":"DATE(G3,4,22)","v":"2024-04-22"},"عيد الفطر المبارك",null,"بدل راحة","مايو",5]
[null,null,null,null,{"$f":"DATE(G3,4,23)","v":"2024-04-23"},"عيد الفطر المبارك",null,"نصف يوم","يونيو",6]
[null,null,null,null,{"$f":"DATE(G3,4,25)","v":"2024-04-25"},"عيد تحرير سيناء",null,"غياب","يوليو",7]
[null,null,null,null,{"$f":"DATE(G3,5,1)","v":"2024-05-01"},"عيد العمال",null,null,"أغسطس",8]
[null,null,null,null,{"$f":"DATE(G3,6,21)","v":"2024-06-21"},"عيد الأضحى",null,null,"سبتمبر",9]
[null,null,null,null,{"$f":"DATE(G3,6,28)","v":"2024-06-28"},"عيد الأضحى",null,null,"أكتوبر",10]
[null,null,null,null,{"$f":"DATE(G3,6,29)","v":"2024-06-29"},"عيد الأضحى",null,null,"نوفمبر",11]
[null,null,null,null,{"$f":"DATE(G3,6,30)","v":"2024-06-30"},"ثورة 30 يونيو",null,null,"ديسمبر",12]
[null,null,null,null,{"$f":"DATE(G3,7,20)","v":"2024-07-20"},"رأس السنه الهجرية"]
[null,null,null,null,{"$f":"DATE(G3,7,23)","v":"2024-07-23"},"ثورة 23 يوليو"]
[null,null,null,null,{"$f":"DATE(G3,8,28)","v":"2024-08-28"},"المولد النبوى الشريف"]
[null,null,null,null,{"$f":"DATE(G3,10,5)","v":"2024-10-05"},"6أكتوبر"]

{"sheet":"حضور وانصراف","index":1,"n_rows":48,"n_cols":44,"rows_kept":48,"cut":false,"hidden":false,"merged":[[3,4,3,5],[3,6,3,7],[1,31,1,34],[4,4,4,5],[4,6,4,7],[2,8,2,34]]}
[]
[null,null,null,null,null,null,null,null,null,null,null,null,null,null,null,null,null,null,null,null,null,null,null,null,null,null,null,null,null,null,null,{"$f":"TODAY()","v":"2024-02-03"}]
[null,null,null,{"$f":"DATE(G5,E3,1)","v":"2024-01-01"},{"$f":"HLOOKUP(E5,$I$4:$T$5,2,0)","v":1}]
[null,null,null,{"$f":"EOMONTH(D3,0)","v":"2024-01-31"},"الشهر",null,"السنة",null,"يناير","فبراير","مارس","أبريل","مايو","يونيو","يوليو","أغسطس","سبتمبر","أكتوبر","نوفمبر","ديسمبر",null,null,null,null,null,null,null,null,null,null,null,null,null,null,null,null," "]
[null,null,null,null,"يناير",null,{"$f":"اعدادات!G3","v":2024},null,1,2,3,4,5,6,7,8,9,10,11,12,null,null,null,null,null,null,null,null,null,null,null,null,null,null,null,null,{"$f":"31-AJ6","v":2},null,null,{"$f":"COUNTIF(E7:AI7,\"السبت\")","v":4}]
[null,null,null,null,{"$f":"IFERROR(VLOOKUP(E8,اجازات,2,0),\"\")","v":""},"","","","","","عيد الميلاد","","","","","","","","","","","","","","","","","","عيد الشرطه","","","","","","",{"$f":"COUNTIF($E$6:$AI$6,\"\")","v":29},null,null,null,{"$f":"COUNTIF(E7:AI7,\"الجمعة\")","v":4}]
[null,null,null,null,{"$f":"TEXT(E8,\"ddd\")","v":"الإثنين"},{"$f":"TEXT(F8,\"ddd\")","v":"الثلاثاء"},"الأربعاء","الخميس","الجمعة","السبت","الأحد","الإثنين","الثلاثاء","الأربعاء","الخميس","الجمعة","السبت","الأحد","الإثنين","الثلاثاء","الأربعاء","الخميس","الجمعة","السبت","الأحد","الإثنين","الثلاثاء","الأربعاء","الخميس","الجمعة","السبت","الأحد","الإثنين","الثلاثاء","الأربعاء"]
["م","الاســـــــــم ","السنة","الشهر",{"$f":"D3","v":"2024-01-01"},{"$f":"IF(E8<$D$4,E8+1,\"\")","v":"2024-01-02"},{"$f":"IF(F8<$D$4,F8+1,\"\")","v":"2024-01-03"},"2024-01-04","2024-01-05","2024-01-06","2024-01-07","2024-01-08","2024-01-09","2024-01-10","2024-01-11","2024-01-12","2024-01-13","2024-01-14","2024-01-15","2024-01-16","2024-01-17","2024-01-18","2024-01-19","2024-01-20","2024-01-21","2024-01-22","2024-01-23","2024-01-24","2024-01-25","2024-01-26","2024-01-27","2024-01-28","2024-01-29","2024-01-30","2024-01-31","عدد أيام الحضور","عدد أيام اعتيادى","عدد أيام العارضة","عدد أيام المرضى","اجمالى راحة","عدد راحات الشهر الحالي","نصف يوم ","غياب","المجموع"]
[{"$f":"اعدادات!A3","v":1},{"$f":"اعدادات!B3","v":"Ragab"},{"$f":"$G$5","v":2024},{"$f":"$E$5","v":"يناير"},null,null,null,null,null,null,null,null,null,null,null,null,null,null,null,null,null,null,null,null,null,null,null,null,null,null,null,null,null,null,null,{"$f":"COUNTIF(E9:AI9,\"حضور\")","v":0},{"$f":"COUNTIF(E9:AI9,\"اعتيادى\")","v":0},{"$f":"COUNTIF(E9:AI9,\"عارضة\")","v":0},{"$f":"COUNTIF(E9:AI9,\"مرضى\")","v":0},{"$f":"COUNTIF(E9:AI9,\"بدل راحة\")","v":0},{"$f":"$AN$6+$AN$5+$AK$5","v":10},{"$f":"COUNTIF(E9:AI9,\"نصف يوم\")","v":0},{"$f":"COUNTIF(E9:AI9,\"غياب\")","v":0},{"$f":"AQ9/2+AP9","v":0}]
[{"$f":"اعدادات!A4","v":0},{"$f":"اعدادات!B4","v":0},2024,"يناير",null,null,null,null,null,null,null,null,null,null,null,null,null,null,null,null,null,null,null,null,null,null,null,null,null,null,null,null,null,null,null,{"$f":"COUNTIF(E10:AI10,\"حضور\")","v":0},{"$f":"COUNTIF(E10:AI10,\"اعتيادى\")","v":0},{"$f":"COUNTIF(E10:AI10,\"عارضة\")","v":0},{"$f":"COUNTIF(E10:AI10,\"مرضى\")","v":0},0,{"$f":"$AN$6+$AN$5+$AK$5","v":10},{"$f":"COUNTIF(E10:AI10,\"نصف يوم\")","v":0},{"$f":"COUNTIF(E10:AI10,\"غياب\")","v":0},{"$f":"AQ10/2+AP10","v":0}]
[{"$f":"اعدادات!A5","v":0},{"$f":"اعدادات!B5","v":0},2024,"يناير",null,null,null,null,null,null,null,null,null,null,null,null,null,null,null,null,null,null,null,null,null,null,null,null,null,null,null,null,null,null,null,0,0,0,0,0,10,0,0,0]
[{"$f":"اعدادات!A6","v":0},{"$f":"اعدادات!B6","v":0},2024,"يناير",null,null,null,null,null,null,null,null,null,null,null,null,null,null,null,null,null,null,null,null,null,null,null,null,null,null,null,null,null,null,null,0,0,0,0,0,10,0,0,0]
[{"$f":"اعدادات!A7","v":0},{"$f":"اعدادات!B7","v":0},2024,"يناير",null,null,null,null,null,null,null,null,null,null,null,null,null,null,null,null,null,null,null,null,null,null,null,null,null,null,null,null,null,null,null,0,0,0,0,0,10,0,0,0]
[{"$f":"اعدادات!A8","v":0},{"$f":"اعدادات!B8","v":0},2024,"يناير",null,null,null,null,null,null,null,null,null,null,null,null,null,null,null,null,null,null,null,null,null,null,null,null,null,null,null,null,null,null,null,0,0,0,0,0,10,0,0,0]
[{"$f":"اعدادات!A9","v":0},{"$f":"اعدادات!B9","v":0},2024,"يناير",null,null,null,null,null,null,null,null,null,null,null,null,null,null,null,null,null,null,null,null,null,null,null,null,null,null,null,null,null,null,null,0,0,0,0,0,10,0,0,0]
[{"$f":"اعدادات!A10","v":0},{"$f":"اعدادات!B10","v":0},2024,"يناير",null,null,null,null,null,null,null,null,null,null,null,null,null,null,null,null,null,null,null,null,null,null,null,null,null,null,null,null,null,null,null,0,0,0,0,0,10,0,0,0]
[{"$f":"اعدادات!A11","v":0},{"$f":"اعدادات!B11","v":0},2024,"يناير",null,null,null,null,null,null,null,null,null,null,null,null,null,null,null,null,null,null,null,null,null,null,null,null,null,null,null,null,null,null,null,0,0,0,0,0,10,0,0,0]
[{"$f":"اعدادات!A12","v":0},{"$f":"اعدادات!B12","v":0},2024,"يناير",null,null,null,null,null,null,null,null,null,null,null,null,null,null,null,null,null,null,null,null,null,null,null,null,null,null,null,null,null,null,null,0,0,0,0,0,10,0,0,0]
[{"$f":"اعدادات!A13","v":0},{"$f":"اعدادات!B13","v":0},2024,"يناير",null,null,null,null,null,null,null,null,null,null,null,null,null,null,null,null,null,null,null,null,null,null,null,null,null,null,null,null,null,null,null,0,0,0,0,0,10,0,0,0]
[{"$f":"اعدادات!A14","v":0},{"$f":"اعدادات!B14","v":0},2024,"يناير",null,null,null,null,null,null,null,null,null,null,null,null,null,null,null,null,null,null,null,null,null,null,null,null,null,null,null,null,null,null,null,0,0,0,0,0,10,0,0,0]
[{"$f":"اعدادات!A15","v":0},{"$f":"اعدادات!B15","v":0},2024,"يناير",null,null,null,null,null,null,null,null,null,null,null,null,null,null,null,null,null,null,null,null,null,null,null,null,null,null,null,null,null,null,null,0,0,0,0,0,10,0,0,0]
[{"$f":"اعدادات!A16","v":0},{"$f":"اعدادات!B16","v":0},2024,"يناير",null,null,null,null,null,null,null,null,null,null,null,null,null,null,null,null,null,null,null,null,null,null,null,null,null,null,null,null,null,null,null,0,0,0,0,0,10,0,0,0]
[{"$f":"اعدادات!A17","v":0},{"$f":"اعدادات!B17","v":0},2024,"يناير",null,null,null,null,null,null,null,null,null,null,null,null,null,null,null,null,null,null,null,null,null,null,null,null,null,null,null,null,null,null,null,0,0,0,0,0,10,0,0,0]
[{"$f":"اعدادات!A18","v":0},{"$f":"اعدادات!B18","v":0},2024,"يناير",null,null,null,null,null,null,null,null,null,null,null,null,null,null,null,null,null,null,null,null,null,null,null,null,null,null,null,null,null,null,null,0,0,0,0,0,10,0,0,0]
[{"$f":"اعدادات!A19","v":0},{"$f":"اعدادات!B19","v":0},2024,"يناير",null,null,null,null,null,null,null,null,null,null,null,null,null,null,null,null,null,null,null,null,null,null,null,null,null,null,null,null,null,null,null,0,0,0,0,0,10,0,0,0]
[{"$f":"اعدادات!A20","v":0},{"$f":"اعدادات!B20","v":0},2024,"يناير",null,null,null,null,null,null,null,null,null,null,null,null,null,null,null,null,null,null,null,null,null,null,null,null,null,null,null,null,null,null,null,0,0,0,0,0,10,0,0,0]
[{"$f":"اعدادات!A21","v":0},{"$f":"اعدادات!B21","v":0},2024,"يناير",null,null,null,null,null,null,null,null,null,null,null,null,null,null,null,null,null,null,null,null,null,null,null,null,null,null,null,null,null,null,null,0,0,0,0,0,10,0,0,0]
[{"$f":"اعدادات!A22","v":0},{"$f":"اعدادات!B22","v":0},2024,"يناير",null,null,null,null,null,null,null,null,null,null,null,null,null,null,null,null,null,null,null,null,null,null,null,null,null,null,null,null,null,null,null,0,0,0,0,0,10,0,0,0]
[{"$f":"اعدادات!A23","v":0},{"$f":"اعدادات!B23","v":0},2024,"يناير",null,null,null,null,null,null,null,null,null,null,null,null,null,null,null,null,null,null,null,null,null,null,null,null,null,null,null,null,null,null,null,0,0,0,0,0,10,0,0,0]
[{"$f":"اعدادات!A24","v":0},{"$f":"اعدادات!B24","v":0},2024,"يناير",null,null,null,null,null,null,null,null,null,null,null,null,null,null,null,null,null,null,null,null,null,null,null,null,null,null,null,null,null,null,null,0,0,0,0,0,10,0,0,0]
[{"$f":"اعدادات!A25","v":0},{"$f":"اعدادات!B25","v":0},2024,"يناير",null,null,null,null,null,null,null,null,null,null,null,null,null,null,null,null,null,null,null,null,null,null,null,null,null,null,null,null,null,null,null,0,0,0,0,0,10,0,0,0]
[{"$f":"اعدادات!A26","v":0},{"$f":"اعدادات!B26","v":0},2024,"يناير",null,null,null,null,null,null,null,null,null,null,null,null,null,null,null,null,null,null,null,null,null,null,null,null,null,null,null,null,null,null,null,0,0,0,0,0,10,0,0,0]
[{"$f":"اعدادات!A27","v":0},{"$f":"اعدادات!B27","v":0},2024,"يناير",null,null,null,null,null,null,null,null,null,null,null,null,null,null,null,null,null,null,null,null,null,null,null,null,null,null,null,null,null,null,null,0,0,0,0,0,10,0,0,0]
[{"$f":"اعدادات!A28","v":0},{"$f":"اعدادات!B28","v":0},2024,"يناير",null,null,null,null,null,null,null,null,null,null,null,null,null,null,null,null,null,null,null,null,null,null,null,null,null,null,null,null,null,null,null,0,0,0,0,0,10,0,0,0]
[{"$f":"اعدادات!A29","v":0},{"$f":"اعدادات!B29","v":0},2024,"يناير",null,null,null,null,null,null,null,null,null,null,null,null,null,null,null,null,null,null,null,null,null,null,null,null,null,null,null,null,null,null,null,0,0,0,0,0,10,0,0,0]
[{"$f":"اعدادات!A30","v":0},{"$f":"اعدادات!B30","v":0},2024,"يناير",null,null,null,null,null,null,null,null,null,null,null,null,null,null,null,null,null,null,null,null,null,null,null,null,null,null,null,null,null,null,null,0,0,0,0,0,10,0,0,0]
[{"$f":"اعدادات!A31","v":0},{"$f":"اعدادات!B31","v":0},2024,"يناير",null,null,null,null,null,null,null,null,null,null,null,null,null,null,null,null,null,null,null,null,null,null,null,null,null,null,null,null,null,null,null,0,0,0,0,0,10,0,0,0]
[{"$f":"اعدادات!A32","v":0},{"$f":"اعدادات!B32","v":0},2024,"يناير",null,null,null,null,null,null,null,null,null,null,null,null,null,null,null,null,null,null,null,null,null,null,null,null,null,null,null,null,null,null,null,0,0,0,0,0,10,0,0,0]
[{"$f":"اعدادات!A33","v":0},{"$f":"اعدادات!B33","v":0},2024,"يناير",null,null,null,null,null,null,null,null,null,null,null,null,null,null,null,null,null,null,null,null,null,null,null,null,null,null,null,null,null,null,null,0,0,0,0,0,10,0,0,0]
[{"$f":"اعدادات!A34","v":0},{"$f":"اعدادات!B34","v":0},2024,"يناير",null,null,null,null,null,null,null,null,null,null,null,null,null,null,null,null,null,null,null,null,null,null,null,null,null,null,null,null,null,null,null,0,0,0,0,0,10,0,0,0]
[{"$f":"اعدادات!A35","v":0},{"$f":"اعدادات!B35","v":0},2024,"يناير",null,null,null,null,null,null,null,null,null,null,null,null,null,null,null,null,null,null,null,null,null,null,null,null,null,null,null,null,null,null,null,0,0,0,0,0,10,0,0,0]
[{"$f":"اعدادات!A36","v":0},{"$f":"اعدادات!B36","v":0},2024,"يناير",null,null,null,null,null,null,null,null,null,null,null,null,null,null,null,null,null,null,null,null,null,null,null,null,null,null,null,null,null,null,null,0,0,0,0,0,10,0,0,0]
[{"$f":"اعدادات!A37","v":0},{"$f":"اعدادات!B37","v":0},2024,"يناير",null,null,null,null,null,null,null,null,null,null,null,null,null,null,null,null,null,null,null,null,null,null,null,null,null,null,null,null,null,null,null,0,0,0,0,0,10,0,0,0]
[{"$f":"اعدادات!A38","v":0},{"$f":"اعدادات!B38","v":0},2024,"يناير",null,null,null,null,null,null,null,null,null,null,null,null,null,null,null,null,null,null,null,null,null,null,null,null,null,null,null,null,null,null,null,0,0,0,0,0,10,0,0,0]
[{"$f":"اعدادات!A39","v":0},{"$f":"اعدادات!B39","v":0},2024,"يناير",null,null,null,null,null,null,null,null,null,null,null,null,null,null,null,null,null,null,null,null,null,null,null,null,null,null,null,null,null,null,null,0,0,0,0,0,10,0,0,0]
[{"$f":"اعدادات!A40","v":0},{"$f":"اعدادات!B40","v":0},2024,"يناير",null,null,null,null,null,null,null,null,null,null,null,null,null,null,null,null,null,null,null,null,null,null,null,null,null,null,null,null,null,null,null,0,0,0,0,0,10,0,0,0]
[{"$f":"اعدادات!A41","v":0},{"$f":"اعدادات!B41","v":0},2024,"يناير",null,null,null,null,null,null,null,null,null,null,null,null,null,null,null,null,null,null,null,null,null,null,null,null,null,null,null,null,null,null,null,0,0,0,0,0,10,0,0,0]
[{"$f":"اعدادات!A42","v":0},{"$f":"اعدادات!B42","v":0},2024,"يناير",null,null,null,null,null,null,null,null,null,null,null,null,null,null,null,null,null,null,null,null,null,null,null,null,null,null,null,null,null,null,null,0,0,0,0,0,10,0,0,0]

{"sheet":"data","index":2,"n_rows":3,"n_cols":40,"rows_kept":3,"cut":false,"hidden":false,"merged":[[1,39,2,39],[1,35,2,35],[1,36,2,36],[1,37,2,37],[1,38,2,38]]}
[null,null,null,null,null,null,null,null,null,null,null,null,null,null,null,null,null,null,null,null,null,null,null,null,null,null,null,null,null,null,null,null,null,null,null,{"$f":"_xlfn.AGGREGATE(9,5,AJ4:AJ1048576)","v":0},0,0,0,0]
[null,null,null,null,null,null,null,null,null,null,null,null,null,null,null,null,null,null,null,null,null,null,null,null,null,null,null,null,null,null,null,null,null,null,null,"عدد أيام الحضور","عدد أيام اعتيادى","عدد أيام العارضة","عدد أيام المرضى","اجمالى راحة"]
["م","الاســـــــــم ","السنة","الشهر","1900-01-01","1900-01-02","1900-01-03","1900-01-04","1900-01-05","1900-01-06","1900-01-07","1900-01-08","1900-01-09","1900-01-10","1900-01-11","1900-01-12","1900-01-13","1900-01-14","1900-01-15","1900-01-16","1900-01-17","1900-01-18","1900-01-19","1900-01-20","1900-01-21","1900-01-22","1900-01-23","1900-01-24","1900-01-25","1900-01-26","1900-01-27","1900-01-28","1900-01-29","1900-01-30","1900-01-31"]

{"sheet":"Sheet1","index":3,"n_rows":44,"n_cols":9,"rows_kept":44,"cut":false,"hidden":false,"merged":[]}
[]
[null,null,null,null,null,null,null,"عدد أيام اعتيادى","عدد أيام العارضة"]
[]
["م","الاسم","رصيد الاجازات السنوية ","رصيد الاجازات العارضة","رصيد المتبقى من السنوى ","رصيد المتبقى من العارضة ","رصيد المتبقى من بدل راحة ","اجمالى  عدد أيام اعتيادى","اجمالى عدد أيام العارضة"]
[{"$f":"اعدادات!A3:B42","v":1},"Ragab",{"$f":"اعدادات!C3:C42","v":21},{"$f":"اعدادات!D3:D42","v":0},{"$f":"C5-H5","v":21},{"$f":"D5-I5","v":0},null,{"$f":"SUMIFS(J5:XFD5,J4:XFD4,$H$2)","v":0},{"$f":"SUMIFS(J5:XFD5,J4:XFD4,$I$2)","v":0}]
[0,0,0,0,{"$f":"C6-H6","v":0},{"$f":"D6-I6","v":0},null,0,0]
[0,0,0,0,0,0,null,0,0]
[0,0,0,0,0,0,null,0,0]
[0,0,0,0,0,0,null,0,0]
[0,0,0,0,0,0,null,0,0]
[0,0,0,0,0,0,null,0,0]
[0,0,0,0,0,0,null,0,0]
[0,0,0,0,0,0,null,0,0]
[0,0,0,0,0,0,null,0,0]
[0,0,0,0,0,0,null,0,0]
[0,0,0,0,0,0,null,0,0]
[0,0,0,0,0,0,null,0,0]
[0,0,0,0,0,0,null,0,0]
[0,0,0,0,0,0,null,0,0]
[0,0,0,0,0,0,null,0,0]
[0,0,0,0,0,0,null,0,0]
[0,0,0,0,0,0,null,0,0]
[0,0,0,0,0,0,null,0,0]
[0,0,0,0,0,0,null,0,0]
[0,0,0,0,0,0,null,0,0]
[0,0,0,0,0,0,null,0,0]
[0,0,0,0,0,0,null,0,0]
[0,0,0,0,0,0,null,0,0]
[0,0,0,0,0,0,null,0,0]
[0,0,0,0,0,0,null,0,0]
[0,0,0,0,0,0,null,0,0]
[0,0,0,0,0,0,null,0,0]
[0,0,0,0,0,0,null,0,0]
[0,0,0,0,0,0,null,0,0]
[0,0,0,0,0,0,null,0,0]
[0,0,0,0,0,0,null,0,0]
[0,0,0,0,0,0,null,0,0]
[0,0,0,0,0,0,null,0,0]
[0,0,0,0,0,0,null,0,0]
[0,0,0,0,0,0,null,0,0]
[0,0,0,0,0,0,null,0,0]
[0,0,0,0,0,0,null,0,0]
[0,0,0,0,0,0,null,0,0]
[0,0,0,0,0,0,null,0,0]